bitfinex/quotes_ETHUSD_20250925
["timestamp","ask_amount","ask_price","bid_price","bid_amount"]
[1758828702785,3.07535572,3944.9,3944.8,0.002]
[1758828703702,7.46335572,3944.9,3944.8,0.002]
[1758828703901,8.95622142,3944.9,3944.8,0.002]
[1758828704466,8.95622142,3944.9,3944.7,0.002]
[1758828704467,2.66138276,3944.8,3944.7,0.002]
[1758828704667,3.20181998,3944.8,3944.7,0.002]
[1758828706304,7.58981998,3944.8,3944.7,0.002]
[1758828707075,3.20181998,3944.8,3944.7,0.002]
[1758828707274,7.58981998,3944.8,3944.7,0.7101]
[1758828707475,8.9749889,3944.8,3944.7,0.7101]
[1758828707704,8.9749889,3944.8,3943.8,2.112]
[1758828707705,2.53523983,3944.4,3943.8,2.112]
[1758828707879,1.36539699,3943.9,3943.8,2.112]
[1758828708080,1.90589458,3943.9,3943.8,2.112]
[1758828708280,0.54043722,3943.9,3943.8,2.112]
[1758828708686,1.90589458,3943.9,3943.8,2.112]
[1758828708886,0.54043722,3943.9,3943.6,2.53574795]
[1758828709090,0.91079535,3943.7,3943.6,2.53574795]
[1758828709299,0.54043722,3943.7,3943.6,9.03574795]
[1758828709502,0.54043722,3943.7,3943.6,2.53574795]
[1758828709702,0.54043722,3943.7,3943.6,9.71474795]
[1758828709703,1.45123257,3943.7,3943.6,9.71474795]
[1758828710240,0.54043722,3943.7,3943.6,12.71474795]
[1758828710384,0.54043722,3943.7,3943.6,12.84114795]
[1758828711123,0.54043722,3943.7,3943.6,13.63314795]
[1758828712016,0.54043722,3943.7,3943.6,11.52114795]
[1758828712220,0.54043722,3943.7,3943.6,13.63314795]
[1758828712786,0.54043722,3943.7,3943.6,7.13314795]
[1758828712994,0.54043722,3943.7,3943.6,13.63314795]
[1758828713222,0.68324795,3944.3,3944.1,2.53543267]
[1758828713422,0.68324795,3944.3,3944.2,7.60236838]
[1758828713609,0.54690628,3944.3,3944.2,7.60236838]
[1758828714092,1.23055524,3944.3,3944.2,7.60236838]
[1758828714289,0.54690628,3944.3,3944.2,7.60236838]
[1758828714488,1.23058864,3944.3,3944.2,7.60236838]
[1758828714695,0.001,3944.8,3944.7,2.53504702]
[1758828714909,0.001,3944.8,3944.7,13.50504702]
[1758828715097,0.001,3944.8,3944.7,13.63144702]
[1758828715498,0.001,3945.2,3945.1,2.53478999]
[1758828715828,0.001,3945.2,3945.1,7.00578999]
[1758828716192,0.001,3945.2,3945.1,7.13218999]
[1758828717226,0.001,3945.2,3945.1,11.51918999]
[1758828718224,0.001,3945.2,3945.1,7.87508999]
[1758828718426,0.001,3945.2,3945.1,12.26208999]
[1758828719624,0.001,3945.2,3945.1,12.71278999]
[1758828720408,0.001,3945.2,3945.1,2.53478999]
[1758828720741,0.001,3945.2,3945.1,9.03278999]
[1758828721115,0.001,3945.2,3945.1,9.26108999]
[1758828722151,0.001,3945.2,3945.1,9.03278999]
[1758828723121,0.001,3945.2,3945.1,6.498]
[1758828723341,0.001,3945.2,3945.1,9.03278999]
[1758828723546,0.001,3945.2,3945.1,6.498]
[1758828723748,0.001,3945.2,3944.2,0.792]
[1758828723749,0.6757,3945.2,3944.2,2.112]
[1758828723949,2.53524629,3944.4,3943.7,2.53568983]
[1758828724248,2.53524629,3944.4,3943.8,4.386]
[1758828724249,0.6747,3944.3,3943.8,4.386]
[1758828724447,0.6747,3944.2,3943.8,4.386]
[1758828724748,0.001,3945.2,3943.6,2.114]
[1758828724749,0.6747,3944.1,3943.9,4.386]
[1758828724930,0.6747,3944.0,3943.8,4.386]
[1758828725848,3.21026124,3943.9,3943.6,0.002]
[1758828726050,0.6747,3943.9,3943.7,4.386]
[1758828726252,0.6747,3943.8,3943.7,4.386]
[1758828726763,0.2321,3943.8,3943.7,4.386]
[1758828726927,0.6747,3943.8,3943.7,4.386]
[1758828727358,0.4426,3944.3,3943.7,4.386]
[1758828727528,0.2321,3944.2,3943.7,4.386]
[1758828728160,0.6747,3944.2,3943.7,4.386]
[1758828728329,0.4426,3944.2,3943.7,4.386]
[1758828728657,0.2321,3944.1,3943.7,4.386]
[1758828728959,0.6747,3944.0,3943.7,4.386]
[1758828729161,2.66208983,3943.7,3943.6,0.002]
[1758828729784,3.33678983,3943.7,3943.6,0.002]
[1758828733668,0.2321,3944.5,3943.6,0.002]
[1758828733898,2.53562845,3943.8,3943.6,0.002]
[1758828734471,3.21038983,3943.7,3943.6,0.002]
[1758828736317,2.53568983,3943.7,3943.6,0.002]
[1758828736618,0.551373,3943.8,3943.6,0.002]
[1758828736783,2.53538131,3944.2,3943.6,0.2491]
[1758828736984,3.20997619,3944.4,3943.6,0.2491]
[1758828737181,2.53561662,3943.9,3943.6,0.2491]
[1758828737410,2.53562943,3943.8,3943.6,0.2491]
[1758828737611,2.53562943,3943.8,3943.6,0.002]
[1758828737930,2.53553946,3944.0,3943.6,0.002]
[1758828738131,2.53557213,3943.9,3943.6,0.002]
[1758828738425,1.00369816,3944.4,3943.6,0.002]
[1758828738630,2.53555165,3944.0,3943.6,0.002]
[1758828738930,2.53548473,3944.1,3943.6,0.2477]
[1758828739130,2.53554687,3944.0,3943.7,0.2457]
[1758828739428,2.53560291,3943.9,3943.6,0.002]
[1758828739725,2.88918923,3944.3,3943.6,0.002]
[1758828739924,2.53543774,3944.1,3943.7,0.2457]
[1758828740236,2.53554844,3944.0,3943.6,0.002]
[1758828740430,0.36825874,3944.2,3943.6,0.002]
[1758828740617,2.53568983,3943.7,3943.6,0.002]
[1758828741042,3.23278983,3943.7,3943.6,0.002]
[1758828743901,6.23278983,3943.7,3943.6,0.002]
[1758828745218,0.2327,3944.0,3943.6,0.002]
[1758828745419,2.53564443,3943.8,3943.6,0.002]
[1758828745625,2.53536838,3944.2,3943.6,0.002]
[1758828745834,0.2327,3944.3,3943.7,0.6943]
[1758828745835,2.53546237,3944.1,3943.7,0.6943]
[1758828746012,4.386,3944.4,3943.8,0.2457]
[1758828746344,2.5353041,3944.3,3943.8,0.2457]
[1758828746533,2.53554991,3944.0,3943.8,0.2457]
[1758828746730,3.0435583,3944.4,3943.8,0.2457]
[1758828746922,0.1264,3943.8,3943.6,0.4506]
[1758828747123,0.1264,3943.8,3943.7,0.4486]
[1758828747318,2.53537108,3944.2,3943.7,0.4486]
[1758828747550,2.53537108,3944.2,3943.8,0.6943]
[1758828747847,3.04356966,3944.4,3943.9,0.2457]
[1758828748142,2.53543434,3944.1,3943.9,0.2457]
[1758828748443,0.001,3945.2,3943.9,0.2457]
[1758828748645,0.2327,3945.0,3944.0,0.2457]
[1758828748941,2.53515313,3944.6,3944.0,0.2457]
[1758828749121,0.32381,3944.9,3944.0,0.2457]
[1758828749306,2.5353197,3944.3,3944.0,0.2457]
[1758828749510,0.2327,3944.8,3944.0,0.2457]
[1758828749909,2.53519806,3944.5,3944.0,0.2457]
[1758828750111,0.1264,3944.0,3943.9,3.0]
[1758828750333,0.1264,3944.0,3943.9,3.6943]
[1758828751045,0.1264,3944.0,3943.9,0.2457]
[1758828751344,0.1264,3944.0,3943.6,0.002]
[1758828751345,2.53560737,3943.9,3943.6,0.002]
[1758828751546,0.2327,3944.0,3943.6,0.002]
[1758828751743,2.76820729,3944.0,3943.6,0.002]
[1758828751944,2.53557241,3943.9,3943.6,0.002]
[1758828752248,2.53563655,3943.8,3943.6,0.002]
[1758828752470,3.23260581,3944.0,3943.6,0.002]
[1758828752471,0.6971,3944.0,3943.6,0.002]
[1758828752675,2.53556124,3943.9,3943.6,0.002]
[1758828753345,3.23262039,3944.0,3943.6,0.002]
[1758828753576,2.53563522,3943.8,3943.6,0.002]
[1758828753781,0.57681849,3943.8,3943.6,0.002]
[1758828753988,0.57681849,3943.8,3943.2,0.002]
[1758828753989,2.53594704,3943.3,3943.2,0.002]
[1758828754147,2.53594704,3943.3,3942.6,0.002]
[1758828754148,2.53607567,3943.1,3942.6,0.002]
[1758828754456,2.53620431,3942.9,3942.6,0.002]
[1758828754653,7.46809052,3942.9,3942.6,0.002]
[1758828754942,6.32833296,3942.7,3942.6,1e-08]
[1758828755165,10.87311725,3942.7,3942.6,1e-08]
[1758828755374,12.48101691,3942.7,3942.6,1e-08]
[1758828755676,11.57021725,3942.7,3942.6,1e-08]
[1758828755879,12.48100949,3942.7,3942.6,1e-08]
[1758828756248,11.57021725,3942.7,3942.6,1e-08]
[1758828756555,12.48026014,3942.7,3942.6,1e-08]
[1758828756745,11.57021725,3942.7,3942.6,1e-08]
[1758828756945,3.792,3942.6,3942.2,0.002]
[1758828757161,6.32859031,3942.3,3942.2,0.002]
[1758828757479,13.37347652,3942.3,3942.2,0.002]
[1758828757657,24.18463852,3942.3,3942.2,0.002]
[1758828757858,24.88173852,3942.3,3942.2,0.002]
[1758828758277,28.53230552,3942.3,3942.2,0.002]
[1758828758610,29.95387325,3942.3,3942.2,0.002]
[1758828758743,29.62531334,3942.3,3942.2,0.002]
[1758828758941,2.53762021,3940.7,3940.6,0.002]
[1758828759347,6.78160642,3940.7,3940.6,0.002]
[1758828759569,7.57360642,3940.7,3940.6,0.002]
[1758828759763,9.11403496,3940.7,3940.6,0.002]
[1758828760006,3.32987782,3940.3,3940.2,1e-08]
[1758828760388,7.57386403,3940.3,3940.2,1e-08]
[1758828761522,6.08476403,3940.3,3940.2,1e-08]
[1758828761890,6.78186403,3940.3,3940.2,1e-08]
[1758828762091,8.15232965,3940.3,3940.2,1e-08]
[1758828763025,1.54042854,3940.7,3940.2,0.24570001]
[1758828763326,2.53787782,3940.3,3940.2,0.44860001]
[1758828763644,2.53787782,3940.3,3940.2,1e-08]
[1758828763791,2.53787782,3940.3,3940.2,0.44860001]
[1758828763991,2.53787782,3940.3,3940.2,1e-08]
[1758828764919,3.23497782,3940.3,3940.2,1e-08]
[1758828765100,3.81225487,3940.3,3940.2,1e-08]
[1758828765735,3.34785487,3940.3,3940.2,1e-08]
[1758828766094,3.81225487,3940.3,3940.2,1e-08]
[1758828767759,8.19925487,3940.3,3940.2,1e-08]
[1758828768273,3.11515487,3940.3,3940.2,1e-08]
[1758828768421,2.53787782,3940.3,3940.2,0.68760001]
[1758828768761,2.53787782,3940.3,3940.2,0.23150001]
[1758828769462,2.53787782,3940.3,3940.2,0.68760001]
[1758828769621,2.53779675,3940.5,3940.2,0.68760001]
[1758828769822,4.92766671,3941.3,3940.3,0.6876]
[1758828770016,2.53781341,3940.4,3940.3,0.6876]
[1758828771258,2.66427782,3940.3,3940.2,1e-08]
[1758828771453,2.66427782,3940.3,3940.2,0.23150001]
[1758828771640,2.66427782,3940.3,3940.2,0.68760001]
[1758828771641,0.1264,3940.3,3940.2,0.68760001]
[1758828772035,0.72392391,3941.2,3940.2,0.68760001]
[1758828772349,2.53775907,3940.5,3940.3,0.2315]
[1758828772567,2.53775907,3940.5,3940.4,0.6876]
[1758828772769,0.72392391,3941.2,3940.4,0.6876]
[1758828772921,2.53768222,3940.7,3940.5,0.2315]
[1758828773128,0.1264,3940.4,3940.2,1e-08]
[1758828773346,2.5377703,3940.5,3940.3,6.501]
[1758828773518,2.5377703,3940.5,3940.2,1e-08]
[1758828773519,2.53787782,3940.3,3940.2,1e-08]
[1758828773955,2.53787782,3940.3,3940.2,0.23150001]
[1758828775263,2.53787782,3940.3,3940.2,0.68760001]
[1758828775465,4.6182,3941.3,3940.2,0.68760001]
[1758828775654,2.5378624,3940.4,3940.3,0.2315]
[1758828775842,2.53769021,3940.6,3940.3,0.2315]
[1758828776039,0.54103556,3941.1,3940.4,0.4561]
[1758828776040,2.53736266,3941.1,3940.4,0.4561]
[1758828776245,2.53773978,3940.6,3940.4,0.4561]
[1758828776446,3.07839822,3941.1,3940.2,1e-08]
[1758828776691,2.53780957,3940.5,3940.3,0.4561]
[1758828776876,2.53781341,3940.4,3940.2,2.11400001]
[1758828777177,2.53787782,3940.3,3940.2,1e-08]
[1758828778267,0.84680594,3941.0,3940.2,0.68760001]
[1758828778575,2.53781341,3940.4,3940.2,4.38700001]
[1758828778873,2.53787782,3940.3,3940.2,4.61850001]
[1758828779076,2.53787782,3940.3,3940.2,4.38700001]
[1758828779457,2.53787782,3940.3,3940.2,4.61850001]
[1758828779654,2.53787782,3940.3,3940.2,0.68760001]
[1758828779970,2.53787782,3940.3,3940.2,6.73250001]
[1758828780170,2.53787782,3940.3,3940.2,0.23150001]
[1758828780365,2.53787782,3940.3,3940.2,6.50100001]
[1758828781076,2.53787782,3940.3,3940.2,4.38600001]
[1758828781771,2.53787782,3940.3,3940.2,1e-08]
[1758828781975,3.58938432,3940.3,3940.2,1e-08]
[1758828782360,3.08181897,3940.3,3940.2,1e-08]
[1758828782767,0.54394115,3940.3,3940.2,0.68760001]
[1758828782972,3.08181897,3940.3,3940.2,0.68760001]
[1758828783168,3.08181897,3940.3,3940.2,5.07360001]
[1758828783369,3.08181897,3940.3,3940.2,1e-08]
[1758828783588,3.80221353,3940.3,3940.2,4.38600001]
[1758828783994,4.47842547,3940.3,3940.2,1e-08]
[1758828784168,4.47842547,3940.3,3940.2,4.38600001]
[1758828784354,3.80221353,3940.3,3940.2,4.38600001]
[1758828784891,3.7650999,3940.3,3940.2,5.10730001]
[1758828785071,3.08181897,3940.3,3940.2,5.10730001]
[1758828785266,3.08281897,3940.3,3940.2,4.63560001]
[1758828785873,3.76644063,3940.3,3940.2,4.63560001]
[1758828786093,3.08281897,3940.3,3940.2,4.63560001]
[1758828786291,3.76647461,3940.3,3940.2,4.63560001]
[1758828786493,3.08281897,3940.3,3940.2,4.63560001]
[1758828787292,3.08281897,3940.3,3940.2,4.38600001]
[1758828787868,4.78007066,3940.3,3940.2,1e-08]
[1758828788063,4.55621601,3940.3,3940.2,1e-08]
[1758828788791,5.92474948,3940.3,3940.2,1e-08]
[1758828789063,5.24044611,3940.3,3940.2,1e-08]
[1758828789401,4.45134907,3940.3,3940.2,1e-08]
[1758828789561,3.08281897,3940.3,3940.2,1e-08]
[1758828789763,3.08281897,3940.3,3940.2,0.72130001]
[1758828789996,1.22912413,3940.3,3940.2,0.72130001]
[1758828790215,0.001,3940.7,3940.6,2.53768461]
[1758828790378,0.001,3940.7,3940.6,6.34055307]
[1758828790582,0.001,3940.7,3940.6,12.84055307]
[1758828792105,0.001,3940.7,3940.6,12.96751483]
[1758828792482,0.001,3940.7,3940.6,13.75951483]
[1758828792679,0.001,3941.1,3941.0,6.32942704]
[1758828792988,0.001,3941.1,3941.0,6.84011137]
[1758828793186,0.001,3941.1,3941.0,7.38921137]
[1758828793366,0.001,3941.1,3941.0,13.88821137]
[1758828793766,0.001,3941.1,3941.0,7.38921137]
[1758828793971,0.001,3941.1,3941.0,13.88821137]
[1758828794190,0.001,3941.1,3941.0,7.38921137]
[1758828794403,0.001,3941.1,3941.0,5.87428433]
[1758828794607,0.001,3941.1,3941.0,10.25928433]
[1758828794817,0.001,3941.1,3941.0,10.55878433]
[1758828794984,0.001,3941.1,3941.0,13.09621137]
[1758828795984,0.001,3941.1,3941.0,5.87428433]
[1758828796305,0.001,3941.1,3941.0,7.385]
[1758828796484,0.001,3941.1,3941.0,9.499]
[1758828796682,0.001,3941.1,3941.0,7.385]
[1758828796913,0.001,3941.1,3941.0,9.499]
[1758828799449,0.001,3941.1,3941.0,9.498]
[1758828800712,0.001,3941.1,3941.0,9.7479]
[1758828801111,0.001,3941.1,3941.0,12.28532704]
[1758828801531,0.001,3941.1,3941.0,9.7479]
[1758828801907,0.001,3941.1,3941.0,12.58482704]
[1758828802434,0.001,3941.1,3941.0,12.28532704]
[1758828802639,0.001,3941.1,3941.0,12.58482704]
[1758828802832,0.001,3941.1,3941.0,12.71122704]
[1758828803134,1.24056068,3942.6,3941.0,12.71122704]
[1758828803135,2.53608355,3943.1,3941.2,0.792]
[1758828803435,0.4614,3943.2,3942.1,0.1264]
[1758828803615,0.1264,3942.7,3942.3,3.0]
[1758828803800,0.1264,3942.7,3942.4,4.383]
[1758828804007,0.1264,3942.7,3942.4,4.6329]
[1758828804206,0.1264,3942.7,3942.5,0.2499]
[1758828804435,0.1264,3942.7,3942.6,4.383]
[1758828804641,0.6955,3943.6,3942.6,6.497]
[1758828804804,2.53608919,3943.1,3942.6,6.7469]
[1758828805008,0.73689467,3943.5,3942.6,6.7469]
[1758828805209,0.6955,3943.4,3942.6,6.7469]
[1758828805410,0.6955,3943.4,3942.6,6.497]
[1758828805411,2.53611077,3943.1,3942.6,6.497]
[1758828805607,0.4614,3943.4,3942.6,6.497]
[1758828805845,0.1264,3943.0,3942.7,2.78623294]
[1758828806044,0.1264,3943.0,3942.9,2.53620431]
[1758828806345,0.1264,3943.0,3942.9,4.383]
[1758828806712,0.1264,3943.0,3942.9,4.6329]
[1758828806934,0.1264,3943.0,3942.9,4.383]
[1758828807249,0.1264,3943.0,3942.9,6.91920431]
[1758828807542,0.1264,3943.0,3942.9,7.16910431]
[1758828808237,0.1264,3943.4,3943.0,2.5361321]
[1758828808412,0.1264,3943.4,3943.1,4.383]
[1758828808617,0.1264,3943.4,3943.1,7.16893397]
[1758828808818,0.1264,3943.4,3943.1,7.16897127]
[1758828809018,0.1264,3943.4,3943.1,6.91907127]
[1758828809322,0.1264,3943.4,3943.2,2.78589872]
[1758828809522,0.1264,3943.4,3943.3,6.91794704]
[1758828809718,0.1264,3943.4,3943.3,7.16784704]
[1758828810039,0.1264,3943.4,3943.3,4.6319]
[1758828810245,0.1264,3943.4,3943.3,7.16784704]
[1758828810545,3.001,3944.8,3943.6,2.53569925]
[1758828810546,0.4614,3944.5,3943.6,2.53569925]
[1758828810719,0.1264,3943.8,3943.2,0.1264]
[1758828810916,0.1264,3943.5,3942.8,0.1264]
[1758828811114,0.1264,3943.2,3943.0,3.0]
[1758828811444,0.1264,3943.2,3943.1,2.113]
[1758828811445,0.87744031,3943.2,3943.1,2.113]
[1758828811622,0.5878,3943.2,3943.1,2.113]
[1758828811948,0.8219,3943.2,3943.1,2.113]
[1758828812242,0.1264,3943.2,3943.1,9.495]
[1758828812461,0.1264,3943.2,3943.1,9.7449]
[1758828813236,0.1264,3943.2,3943.1,9.495]
[1758828814949,0.1264,3943.2,3943.1,9.7449]
[1758828815266,0.1264,3943.2,3943.1,9.495]
[1758828815468,0.1264,3943.2,3943.1,9.7449]
[1758828815770,0.1264,3943.2,3943.1,3.2499]
[1758828815949,0.1264,3943.2,3943.1,9.494]
[1758828818450,0.1264,3943.2,3943.1,12.27997567]
[1758828818942,0.4614,3944.1,3943.2,3.0]
[1758828819175,0.4614,3944.0,3942.8,0.2499]
[1758828819473,0.54484017,3943.9,3943.0,3.0]
[1758828819671,2.53586521,3943.5,3943.1,2.964]
[1758828819870,2.53568983,3943.7,3943.1,2.964]
[1758828819871,3.73854736,3943.4,3943.1,2.964]
[1758828820086,1.2026555,3943.4,3943.1,2.964]
[1758828820435,0.001,3943.2,3943.1,5.964]
[1758828820642,0.001,3943.2,3943.1,9.493]
[1758828820903,0.001,3943.2,3943.1,6.493]
[1758828823746,0.001,3943.2,3943.1,9.27897567]
[1758828824472,0.001,3943.2,3943.1,6.7429]
[1758828824998,0.001,3943.2,3943.1,9.27897567]
[1758828825759,0.001,3943.2,3943.1,6.7429]
[1758828826161,0.001,3943.2,3943.1,2.113]
[1758828826363,0.001,3943.2,3943.1,6.492]
[1758828828851,0.001,3943.2,3942.8,0.2341]
[1758828829052,0.001,3943.2,3942.9,6.7261]
[1758828829251,0.1274,3943.2,3942.9,6.7261]
[1758828829654,0.1274,3943.2,3943.0,2.770231]
[1758828829854,0.1274,3943.2,3943.1,4.379]
[1758828830868,0.1274,3943.2,3943.1,9.492]
[1758828831183,0.1274,3943.2,3943.1,12.26217567]
[1758828831595,0.001,3943.2,3943.1,12.56187567]
[1758828832248,0.001,3943.2,3943.1,3.0]
[1758828832502,2.53609051,3943.1,3942.9,2.113]
[1758828832785,1.22902731,3943.2,3943.0,6.491]
[1758828832786,0.001,3943.2,3943.0,6.491]
[1758828833020,0.54755114,3943.1,3942.6,2.113]
[1758828833160,2.53633296,3942.7,3942.6,2.113]
[1758828833509,4.32639294,3942.7,3942.6,6.491]
[1758828833959,1.79005998,3942.7,3941.6,0.2341]
[1758828834278,2.53674182,3942.1,3941.7,4.497]
[1758828834598,2.53697643,3941.7,3941.6,2.113]
[1758828834808,2.53697643,3941.7,3941.6,6.491]
[1758828834809,3.76493487,3941.7,3941.6,6.491]
[1758828835789,0.54745844,3941.7,3941.6,6.491]
[1758828836291,3.21747643,3941.7,3941.6,6.491]
[1758828836988,2.53704079,3941.6,3941.5,0.002]
[1758828837154,3.08363634,3941.6,3941.5,4.38]
[1758828837354,3.76413634,3941.6,3941.5,4.38]
[1758828838362,3.21754079,3941.6,3941.5,0.002]
[1758828838682,2.53698575,3941.7,3941.5,4.38]
[1758828838902,2.53704079,3941.6,3941.5,4.38]
[1758828839208,2.99213184,3941.7,3941.5,4.38]
[1758828839502,0.54548869,3941.9,3941.5,4.38]
[1758828839678,1.00057411,3942.2,3941.6,0.2341]
[1758828839872,2.53672645,3942.1,3941.6,0.2341]
[1758828840077,1.00057411,3942.2,3941.7,0.2341]
[1758828840301,0.4551,3942.2,3941.8,4.378]
[1758828840480,2.9917556,3942.2,3941.8,4.378]
[1758828840688,0.6805,3942.1,3941.5,0.002]
[1758828840886,2.53702042,3941.7,3941.6,0.586]
[1758828841098,0.6805,3941.7,3941.6,0.586]
[1758828841294,2.53685981,3941.9,3941.5,0.002]
[1758828841805,0.6805,3942.3,3941.5,0.2361]
[1758828842112,2.53686363,3941.9,3941.6,4.378]
[1758828842404,2.53680075,3942.0,3941.6,4.378]
[1758828842709,0.1264,3941.6,3941.5,0.002]
[1758828843311,3.68022468,3941.6,3941.5,0.002]
[1758828845098,0.1264,3941.6,3941.5,0.002]
[1758828845304,2.66344079,3941.6,3941.5,0.002]
[1758828845608,0.1264,3941.6,3941.5,0.002]
[1758828847232,0.1264,3941.6,3941.5,0.2335]
[1758828848604,0.1264,3941.7,3941.5,3.07024419]
[1758828848805,0.1264,3941.7,3941.6,0.2315]
[1758828849310,0.1264,3941.7,3941.6,6.7215]
[1758828850194,0.1264,3941.7,3941.5,0.002]
[1758828850395,0.1264,3941.7,3941.6,4.377]
[1758828850595,0.1264,3941.7,3941.6,7.17091119]
[1758828850817,0.1264,3941.7,3941.6,7.14554079]
[1758828851121,0.1264,3941.7,3941.6,10.14554079]
[1758828851599,0.1264,3941.7,3941.6,3.2315]
[1758828851800,0.1264,3941.7,3941.6,9.49]
[1758828853115,0.5737,3941.7,3941.6,9.49]
[1758828853287,0.5737,3941.7,3941.6,4.377]
[1758828853489,0.1264,3941.7,3941.6,4.377]
[1758828855118,0.5737,3941.7,3941.6,4.377]
[1758828856011,0.5737,3941.7,3941.6,4.376]
[1758828856422,0.5737,3941.7,3941.5,0.002]
[1758828856423,2.53704079,3941.6,3941.5,0.002]
[1758828856627,2.77214079,3941.6,3941.5,0.002]
[1758828856929,3.21944079,3941.6,3941.5,0.002]
[1758828859136,3.22044079,3941.6,3941.5,0.002]
[1758828860132,3.76601196,3941.6,3941.5,0.002]
[1758828860334,4.91496288,3941.6,3941.5,0.002]
[1758828860546,2.53755582,3940.8,3940.7,0.002]
[1758828861040,3.00195582,3940.8,3940.7,0.002]
[1758828861240,3.24605582,3940.8,3940.7,0.002]
[1758828861440,3.82440525,3940.8,3940.7,0.002]
[1758828861808,3.58030525,3940.8,3940.7,0.002]
[1758828862013,4.37066719,3940.8,3940.7,0.002]
[1758828862212,3.82440525,3940.8,3940.7,0.002]
[1758828862422,4.37066719,3940.8,3940.7,0.002]
[1758828863633,4.12656719,3940.8,3940.7,0.002]
[1758828864148,4.37066719,3940.8,3940.7,0.002]
[1758828866011,3.66216719,3940.8,3940.7,0.002]
[1758828866722,1.14995092,3941.6,3940.7,0.5286]
[1758828866935,2.53728182,3941.3,3940.8,4.6019]
[1758828867248,2.53724298,3941.3,3940.9,0.2269]
[1758828867559,0.001,3941.6,3940.7,0.002]
[1758828867738,0.1264,3940.8,3940.7,0.002]
[1758828867908,0.1264,3940.8,3940.7,0.2289]
[1758828868123,0.1264,3940.8,3940.7,4.6039]
[1758828868741,0.1264,3940.8,3940.7,4.9036]
[1758828868952,0.1264,3940.8,3940.7,7.44122021]
[1758828869159,0.1264,3940.8,3940.7,4.9036]
[1758828869347,0.1264,3940.8,3940.7,4.6039]
[1758828869554,0.1264,3940.8,3940.7,6.491]
[1758828870335,0.1264,3940.8,3940.7,0.002]
[1758828870559,0.1264,3940.8,3940.7,4.377]
[1758828871544,2.66395582,3940.8,3940.7,4.377]
[1758828871966,0.1264,3940.8,3940.7,4.377]
[1758828872837,2.66395582,3940.8,3940.7,4.377]
[1758828873253,2.66395582,3940.8,3940.7,0.002]
[1758828873254,11.12903465,3940.8,3940.7,0.002]
[1758828873559,11.67551579,3940.8,3940.7,0.002]
[1758828876253,3.77701579,3940.8,3940.7,0.002]
[1758828876563,3.08403696,3940.8,3940.7,0.002]
[1758828877675,2.53749704,3940.9,3940.7,4.6029]
[1758828877971,2.53755582,3940.8,3940.7,4.6029]
[1758828878351,2.53755582,3940.8,3940.7,4.376]
[1758828878552,0.7085,3941.2,3940.7,4.376]
[1758828878756,2.53755582,3940.8,3940.7,4.376]
[1758828879172,2.53755582,3940.8,3940.7,0.002]
[1758828879173,3.09968036,3940.8,3940.7,0.002]
[1758828879468,3.24605582,3940.8,3940.7,0.002]
[1758828879972,2.53750887,3940.9,3940.7,0.002]
[1758828880206,2.53755582,3940.8,3940.7,0.002]
[1758828882238,3.08448846,3940.8,3940.7,0.002]
[1758828882438,3.08449373,3940.8,3940.7,0.002]
[1758828882754,3.08442455,3940.9,3940.7,0.002]
[1758828882953,2.53755582,3940.8,3940.7,0.002]
[1758828883269,0.68418298,3941.4,3940.7,0.002]
[1758828883566,0.70687375,3941.3,3940.7,0.5286]
[1758828883734,2.53737099,3941.1,3940.7,0.3017]
[1758828883963,2.53743127,3941.0,3940.8,0.2269]
[1758828884163,2.53730599,3941.2,3940.9,0.2269]
[1758828884385,0.54732731,3941.1,3941.0,4.5999]
[1758828884585,2.5372985,3941.2,3941.0,4.5999]
[1758828884783,3.0846783,3941.1,3941.0,4.5999]
[1758828885184,3.0846783,3941.1,3941.0,4.373]
[1758828885396,3.66284452,3941.1,3941.0,4.373]
[1758828885596,0.54731564,3941.1,3941.0,4.5999]
[1758828885772,2.53724821,3941.3,3941.0,9.5237749]
[1758828885976,0.54748933,3941.2,3941.1,0.2269]
[1758828886620,0.1264,3941.1,3941.0,4.373]
[1758828886764,0.1264,3941.1,3941.0,4.5999]
[1758828887597,0.67410626,3941.1,3941.0,4.5999]
[1758828887905,0.1264,3941.1,3941.0,4.5999]
[1758828888388,0.67407632,3941.1,3941.0,4.5999]
[1758828888694,0.1264,3941.1,3941.0,4.5999]
[1758828891076,2.66376266,3941.1,3941.0,4.5979]
[1758828891276,0.1264,3941.1,3941.0,4.371]
[1758828891477,3.11836266,3941.1,3941.0,4.371]
[1758828892671,3.6660062,3941.1,3941.0,4.371]
[1758828892899,0.581,3941.1,3941.0,4.371]
[1758828893100,0.1264,3941.1,3941.0,4.371]
[1758828893300,0.1264,3941.1,3940.7,0.002]
[1758828893601,0.1264,3941.1,3940.8,4.9042]
[1758828893801,0.1264,3941.1,3940.9,3.07068403]
[1758828893993,0.1264,3941.1,3941.0,0.002]
[1758828894193,0.1264,3941.1,3941.0,0.2355]
[1758828894794,0.1274,3941.1,3941.0,0.2355]
[1758828896786,0.1274,3941.1,3941.0,4.373]
[1758828896988,0.1274,3941.1,3941.0,6.487]
[1758828897473,0.1274,3941.1,3941.0,6.7205]
[1758828897911,0.001,3941.1,3941.0,13.32207983]
[1758828898098,0.001,3941.1,3941.0,13.47602704]
[1758828899508,0.001,3941.6,3941.5,2.53710516]
[1758828899710,0.001,3941.6,3941.5,14.85535111]
[1758828899902,0.001,3941.6,3941.5,14.82998006]
[1758828900224,0.001,3941.6,3941.5,15.36318006]
[1758828900594,0.001,3941.6,3941.5,12.8260749]
[1758828900911,0.001,3941.6,3941.5,17.47718006]
[1758828901636,0.001,3941.6,3941.5,3.0]